fUST/lending_fUST_20250314
["ID","MTS","AMOUNT","RATE_DAILY","PERIOD"]
[356089016,1741893045989,-500.0,0.00013972,2]
[356089017,1741893045999,-500.0,0.00013972,2]
[356089018,1741893046009,-500.0,0.00013972,2]
[356089019,1741893046019,-500.0,0.00013972,2]
[356089020,1741893046028,-500.0,0.00013972,2]
[356089021,1741893046038,-540.6,0.00013972,2]
[356089022,1741893046047,-154.85197228,0.00013972,2]
[356089023,1741893046056,-500.0,0.00013972,2]
[356089024,1741893046066,-500.0,0.00013972,2]
[356089025,1741893046075,-500.0,0.00013972,2]
[356089026,1741893046084,-2368.19,0.00013972,2]
[356089027,1741893046094,-602.36,0.00013972,2]
[356089028,1741893046103,-500.0,0.00013972,2]
[356089029,1741893046112,-151.0,0.00013972,2]
[356089030,1741893046121,-151.0,0.00013972,2]
[356089031,1741893046130,-151.0,0.00013972,2]
[356089032,1741893046139,-500.0,0.00013972,2]
[356089033,1741893046149,-1011.72,0.00013972,2]
[356089034,1741893046158,-500.0,0.00013972,2]
[356089035,1741893046167,-623.64,0.00013972,2]
[356089036,1741893046177,-500.0,0.00013972,2]
[356089037,1741893046186,-500.0,0.00013972,2]
[356089038,1741893046195,-500.0,0.00013972,2]
[356089039,1741893046204,-1296.24,0.00013972,2]
[356089040,1741893046216,-500.0,0.00013972,2]
[356089041,1741893046225,-313.05361542,0.00013972,2]
[356089042,1741893046234,-500.0,0.00013972,2]
[356089043,1741893046243,-500.0,0.00013972,2]
[356089044,1741893046252,-216.1374661,0.00013972,2]
[356089045,1741893046262,-500.0,0.00013972,2]
[356089046,1741893046272,-500.0,0.00013972,2]
[356089047,1741893046281,-524.17,0.00013972,2]
[356089048,1741893046290,-500.0,0.00013972,2]
[356089049,1741893046299,-500.0,0.00013972,2]
[356089050,1741893046308,-500.0,0.00013972,2]
[356089051,1741893046317,-500.0,0.00013972,2]
[356089052,1741893046327,-500.0,0.00013972,2]
[356089053,1741893046337,-500.0,0.00013972,2]
[356089054,1741893046347,-500.0,0.00013972,2]
[356089055,1741893046357,-500.0,0.00013972,2]
[356089056,1741893046365,-500.0,0.00013972,2]
[356089057,1741893046374,-500.0,0.00013972,2]
[356089058,1741893046384,-500.0,0.00013972,2]
[356089059,1741893046393,-500.0,0.00013972,2]
[356089060,1741893046403,-500.0,0.00013972,2]
[356089061,1741893046413,-500.0,0.00013972,2]
[356089062,1741893046422,-500.0,0.00013972,2]
[356089063,1741893046432,-500.0,0.00013972,2]
[356089064,1741893046441,-500.0,0.00013972,2]
[356089065,1741893046451,-1000.0,0.00013972,2]
[356089066,1741893046461,-500.0,0.00013972,2]
[356089067,1741893046471,-500.0,0.00013972,2]
[356089068,1741893046480,-500.0,0.00013972,2]
[356089069,1741893046490,-500.0,0.00013972,2]
[356089070,1741893046499,-1080.81,0.00013972,2]
[356089071,1741893046509,-500.0,0.00013972,2]
[356089072,1741893046518,-500.0,0.00013972,2]
[356089073,1741893046528,-500.0,0.00013972,2]
[356089074,1741893046537,-500.0,0.00013972,2]
[356089075,1741893046547,-500.0,0.00013972,2]
[356089076,1741893046557,-500.0,0.00013972,2]
[356089077,1741893046566,-500.0,0.00013972,2]
[356089078,1741893046575,-500.0,0.00013972,2]
[356089079,1741893046585,-500.0,0.00013972,2]
[356089080,1741893046594,-500.0,0.00013972,2]
[356089081,1741893046603,-500.0,0.00013972,2]
[356089082,1741893046613,-500.0,0.00013972,2]
[356089083,1741893046623,-1267.07,0.00013972,2]
[356089084,1741893046632,-500.0,0.00013972,2]
[356089085,1741893046642,-500.0,0.00013972,2]
[356089086,1741893046651,-500.0,0.00013972,2]
[356089087,1741893046661,-512.89826559,0.00013972,2]
[356089088,1741893046671,-1000.0,0.00013972,2]
[356089089,1741893046680,-500.0,0.00013972,2]
[356089090,1741893046690,-834.19,0.00013972,2]
[356089091,1741893046699,-557.88,0.00013972,2]
[356089092,1741893046709,-500.0,0.00013972,2]
[356089093,1741893046718,-3547.48,0.00013972,2]
[356089094,1741893046727,-500.0,0.00013972,2]
[356089095,1741893046736,-500.0,0.00013972,2]
[356089096,1741893046746,-530.53270259,0.00013972,2]
[356089097,1741893046755,-500.0,0.00013972,2]
[356089098,1741893046764,-183.963403,0.00013972,2]
[356089099,1741893046774,-183.963403,0.00013972,2]
[356089100,1741893046783,-183.963403,0.00013972,2]
[356089101,1741893046937,-183.963403,0.00013972,2]
[356089102,1741893046970,-500.0,0.00013972,2]
[356089103,1741893046980,-500.0,0.00013972,2]
[356089104,1741893046991,-500.0,0.00013972,2]
[356089105,1741893047001,-500.0,0.00013972,2]
[356089106,1741893047010,-500.0,0.00013972,2]
[356089107,1741893047020,-500.0,0.00013972,2]
[356089108,1741893047030,-500.0,0.00013972,2]
[356089109,1741893047040,-711.69,0.00013972,2]
[356089110,1741893047049,-500.0,0.00013972,2]
[356089111,1741893047059,-1830.72,0.00013972,2]
[356089112,1741893047070,-500.0,0.00013972,2]
[356089113,1741893047079,-1280.52,0.00013972,2]
[356089114,1741893047089,-19095.68,0.00013972,2]
[356089115,1741893047101,-500.0,0.00013972,2]
[356089116,1741893047111,-500.0,0.00013972,2]
[356089117,1741893047120,-500.0,0.00013972,2]
[356089118,1741893047130,-2092.88,0.00013972,2]
[356089119,1741893047139,-500.0,0.00013972,2]
[356089120,1741893047149,-500.0,0.00013972,2]
[356089121,1741893047159,-500.0,0.00013972,2]
[356089122,1741893047168,-500.0,0.00013972,2]
[356089123,1741893047178,-500.0,0.00013972,2]
[356089124,1741893047187,-500.0,0.00013972,2]
[356089125,1741893047197,-506.54902613,0.00013972,2]
[356089126,1741893047206,-500.0,0.00013972,2]
[356089127,1741893047218,-500.0,0.00013972,2]
[356089128,1741893047227,-500.0,0.00013972,2]
[356089129,1741893047237,-2244.35,0.00013972,2]
[356089130,1741893047246,-500.0,0.00013972,2]
[356089131,1741893047256,-500.0,0.00013972,2]
[356089132,1741893047265,-500.0,0.00013972,2]
[356089133,1741893047274,-500.0,0.00013972,2]
[356089134,1741893047284,-1385.14,0.00013972,2]
[356089135,1741893047294,-500.0,0.00013972,2]
[356089136,1741893047303,-1780.26,0.00013972,2]
[356089137,1741893047312,-500.0,0.00013972,2]
[356089138,1741893047322,-542.08843614,0.00013972,2]
[356089139,1741893047331,-500.0,0.00013972,2]
[356089140,1741893047341,-500.0,0.00013972,2]
[356089141,1741893047350,-500.0,0.00013972,2]
[356089142,1741893047359,-500.0,0.00013972,2]
[356089143,1741893047368,-569.54196653,0.00013972,2]
[356089144,1741893047378,-500.0,0.00013972,2]
[356089145,1741893047387,-500.0,0.00013972,2]
[356089146,1741893047396,-3137.12,0.00013972,2]
[356089147,1741893047406,-500.0,0.00013972,2]
[356089148,1741893047415,-2722.48,0.00013972,2]
[356089149,1741893047424,-521.0857854,0.00013972,2]
[356089150,1741893047434,-500.0,0.00013972,2]
[356089151,1741893047444,-500.0,0.00013972,2]
[356089152,1741893047453,-500.0,0.00013972,2]
[356089153,1741893047467,-500.0,0.00013972,2]
[356089154,1741893047476,-500.0,0.00013972,2]
[356089155,1741893047485,-500.0,0.00013972,2]
[356089156,1741893047494,-500.0,0.00013972,2]
[356089157,1741893047503,-878.76,0.00013972,2]
[356089158,1741893047513,-500.0,0.00013972,2]
[356089159,1741893047522,-1284.39,0.00013972,2]
[356089160,1741893047532,-500.0,0.00013972,2]
[356089161,1741893047541,-500.0,0.00013972,2]
[356089162,1741893047551,-500.0,0.00013972,2]
[356089163,1741893047561,-500.0,0.00013972,2]
[356089164,1741893047570,-1513.68,0.00013972,2]
[356089165,1741893047580,-500.0,0.00013972,2]
[356089166,1741893047589,-500.0,0.00013972,2]
[356089167,1741893047598,-500.0,0.00013972,2]
[356089168,1741893047608,-500.0,0.00013972,2]
[356089169,1741893047618,-1378.46,0.00013972,2]
[356089170,1741893047627,-500.0,0.00013972,2]
[356089171,1741893047637,-580.52,0.00013972,2]
[356089172,1741893047646,-500.0,0.00013972,2]
[356089173,1741893047655,-500.0,0.00013972,2]
[356089174,1741893047665,-780.64,0.00013972,2]
[356089175,1741893047674,-4290.49,0.00013972,2]
[356089176,1741893047683,-500.0,0.00013972,2]
[356089177,1741893047692,-500.0,0.00013972,2]
[356089178,1741893047702,-1000.25,0.00013972,2]
[356089179,1741893047714,-500.0,0.00013972,2]
[356089180,1741893047723,-12007.88,0.00013972,2]
[356089181,1741893047733,-500.0,0.00013972,2]
[356089182,1741893047742,-500.0,0.00013972,2]
[356089183,1741893047752,-500.0,0.00013972,2]
[356089184,1741893047761,-1066.56,0.00013972,2]
[356089185,1741893047771,-1743.35,0.00013972,2]
[356089186,1741893047780,-500.0,0.00013972,2]
[356089187,1741893047790,-500.0,0.00013972,2]
[356089188,1741893047800,-500.0,0.00013972,2]
[356089189,1741893047809,-500.0,0.00013972,2]
[356089190,1741893047820,-500.0,0.00013972,2]
[356089191,1741893047830,-648.15500408,0.00013972,2]
[356089192,1741893047839,-500.0,0.00013972,2]
[356089193,1741893047848,-500.0,0.00013972,2]
[356089194,1741893047858,-2449.42,0.00013972,2]
[356089195,1741893047867,-500.0,0.00013972,2]
[356089196,1741893047876,-518.15157387,0.00013972,2]
[356089197,1741893047887,-500.0,0.00013972,2]
[356089198,1741893047901,-500.0,0.00013972,2]
[356089199,1741893047911,-288.27753017,0.00013972,2]
[356089200,1741893047920,-500.0,0.00013972,2]
[356089201,1741893047931,-1044.53,0.00013972,2]
[356089202,1741893047941,-500.0,0.00013972,2]
[356089203,1741893047951,-500.0,0.00013972,2]
[356089204,1741893047961,-500.0,0.00013972,2]
[356089205,1741893047971,-500.0,0.00013972,2]
[356089206,1741893047981,-500.0,0.00013972,2]
[356089207,1741893047991,-500.0,0.00013972,2]
[356089208,1741893048001,-2827.96,0.00013972,2]
[356089209,1741893048010,-591.11882173,0.00013972,2]
[356089210,1741893048020,-500.0,0.00013972,2]
[356089211,1741893048029,-536.78058937,0.00013972,2]
[356089212,1741893048039,-160035.28,0.00013972,2]
[356089213,1741893048049,-500.0,0.00013972,2]
[356089214,1741893048059,-500.0,0.00013972,2]
[356089215,1741893048068,-500.0,0.00013972,2]
[356089216,1741893048078,-500.0,0.00013972,2]
[356089217,1741893048087,-500.0,0.00013972,2]
[356089218,1741893048097,-500.0,0.00013972,2]
[356089219,1741893048106,-500.0,0.00013972,2]
[356089220,1741893048116,-725.22,0.00013972,2]
[356089221,1741893048125,-500.0,0.00013972,2]
[356089222,1741893048135,-500.0,0.00013972,2]
[356089223,1741893048145,-500.0,0.00013972,2]
[356089224,1741893048154,-1486.25,0.00013972,2]
[356089225,1741893048163,-500.0,0.00013972,2]
[356089226,1741893048173,-1935.52,0.00013972,2]
[356089227,1741893048183,-500.0,0.00013972,2]
[356089228,1741893048192,-696.75,0.00013972,2]
[356089229,1741893048201,-1035.42,0.00013972,2]
[356089230,1741893048212,-500.0,0.00013972,2]
[356089231,1741893048222,-3222.86,0.00013972,2]
[356089232,1741893048231,-500.0,0.00013972,2]
[356089233,1741893048240,-8196.4,0.00013972,2]
[356089234,1741893048250,-500.0,0.00013972,2]
[356089235,1741893048259,-500.0,0.00013972,2]
[356089236,1741893048269,-500.0,0.00013972,2]
[356089237,1741893048278,-500.0,0.00013972,2]
[356089238,1741893048287,-500.0,0.00013972,2]
[356089239,1741893048296,-500.0,0.00013972,2]
[356089240,1741893048306,-771.25,0.00013972,2]
[356089241,1741893048315,-7100.79,0.00013972,2]
[356089242,1741893048325,-500.0,0.00013972,2]
[356089243,1741893048334,-500.0,0.00013972,2]
[356089244,1741893048344,-1123.17,0.00013972,2]
[356089245,1741893048353,-1590.27,0.00013972,2]
[356089246,1741893048362,-500.0,0.00013972,2]
[356089247,1741893048371,-509.80773912,0.00013972,2]
[356089248,1741893048382,-500.0,0.00013972,2]
[356089249,1741893048391,-3649.9,0.00013972,2]
[356089250,1741893048400,-500.0,0.00013972,2]
[356089251,1741893048410,-500.0,0.00013972,2]
[356089252,1741893048419,-500.0,0.00013972,2]
[356089253,1741893048429,-500.0,0.00013972,2]
[356089254,1741893048438,-500.0,0.00013972,2]
[356089255,1741893048448,-849.997995,0.00013972,2]
[356089256,1741893048457,-849.997995,0.00013972,2]
[356089257,1741893048467,-849.24,0.00013972,2]
[356089258,1741893048477,-849.997995,0.00013972,2]
[356089259,1741893048486,-500.0,0.00013972,2]
[356089260,1741893048495,-500.0,0.00013972,2]
[356089261,1741893048504,-500.0,0.00013972,2]
[356089262,1741893048514,-500.0,0.00013972,2]
[356089263,1741893048523,-500.0,0.00013972,2]
[356089264,1741893048532,-500.0,0.00013972,2]
[356089265,1741893048541,-849.997995,0.00013972,2]
[356089266,1741893048551,-7732.04,0.00013972,2]
[356089267,1741893048560,-500.0,0.00013972,2]
[356089268,1741893048569,-849.997995,0.00013972,2]
[356089269,1741893048579,-500.0,0.00013972,2]
[356089270,1741893048588,-849.997995,0.00013972,2]
[356089271,1741893048597,-1773.22,0.00013972,2]
[356089272,1741893048607,-151.0,0.00013972,2]
[356089273,1741893048616,-500.0,0.00013972,2]
[356089274,1741893048626,-500.0,0.00013972,2]
[356089275,1741893048635,-151.0,0.00013972,2]
[356089276,1741893048644,-500.0,0.00013972,2]
[356089277,1741893048653,-500.0,0.00013972,2]
[356089278,1741893048663,-151.0,0.00013972,2]
[356089279,1741893048672,-500.0,0.00013972,2]
[356089280,1741893048682,-500.0,0.00013972,2]
[356089281,1741893048691,-500.0,0.00013972,2]
[356089282,1741893048701,-554.54668128,0.00013972,2]
[356089283,1741893048710,-500.0,0.00013972,2]
[356089284,1741893048720,-500.0,0.00013972,2]
[356089285,1741893048729,-2385.96,0.00013972,2]
[356089286,1741893048739,-500.0,0.00013972,2]
[356089287,1741893048748,-603.55,0.00013972,2]
[356089288,1741893048758,-500.0,0.00013972,2]
[356089289,1741893048768,-1035.54,0.00013972,2]
[356089290,1741893048777,-500.0,0.00013972,2]
[356089291,1741893048786,-505.77286047,0.00013972,2]
[356089292,1741893048796,-500.0,0.00013972,2]
[356089293,1741893048806,-10758.25,0.00013972,2]
[356089294,1741893048815,-2889.02,0.00013972,2]
[356089295,1741893048825,-500.0,0.00013972,2]
[356089296,1741893048834,-500.0,0.00013972,2]
[356089297,1741893048844,-500.0,0.00013972,2]
[356089298,1741893048852,-3268.21,0.00013972,2]
[356089299,1741893048862,-500.0,0.00013972,2]
[356089300,1741893048871,-500.0,0.00013972,2]
[356089301,1741893048881,-500.0,0.00013972,2]
[356089302,1741893048892,-500.0,0.00013972,2]
[356089303,1741893048903,-500.0,0.00013972,2]
[356089304,1741893048912,-11056.78,0.00013972,2]
[356089305,1741893048921,-500.0,0.00013972,2]
[356089306,1741893048931,-941.65,0.00013972,2]
[356089307,1741893048940,-500.0,0.00013972,2]
[356089308,1741893048950,-2058.7,0.00013972,2]
[356089309,1741893048959,-553.67,0.00013972,2]
[356089310,1741893048969,-500.0,0.00013973,2]
[356089311,1741893048980,-500.0,0.00013973,2]
[356089312,1741893048990,-500.0,0.00013973,2]
[356089313,1741893049001,-500.0,0.00013973,2]
[356089314,1741893049011,-183.963403,0.00013973,2]
[356089315,1741893049020,-183.963403,0.00013973,2]
[356089316,1741893049030,-1701.0,0.00013973,2]
[356089317,1741893049039,-500.0,0.00013973,2]
[356089318,1741893049048,-719.52358209,0.00013974,2]
[356089319,1741893049057,-632.70664722,0.00013999,2]
[356089320,1741893049068,-3602.3309945,0.00014,2]
[356089321,1741893049077,-233.85646878,0.00014,2]
[356089322,1741893049086,-973.42,0.00014,2]
[356089323,1741893049095,-388.409718,0.00014,2]
[356089324,1741893049105,-205.0,0.00014,2]
[356089325,1741893049114,-205.0,0.00014,2]
[356089326,1741893049123,-205.0,0.00014,2]
[356089327,1741893049133,-151.0,0.00014,2]
[356089328,1741893049142,-400.661493,0.00014,2]
[356089329,1741893049152,-400.661493,0.00014,2]
[356089330,1741893049161,-151.0,0.00014,2]
[356089331,1741893049175,-255.5,0.00014,2]
[356089332,1741893049185,-263.754583,0.00014,2]
[356089333,1741893049194,-263.754583,0.00014,2]
[356089334,1741893049204,-151.0,0.00014,2]
[356089335,1741893049214,-183.963403,0.00014,2]
[356089336,1741893049224,-183.963403,0.00014,2]
[356089337,1741893049233,-849.997995,0.00014,2]
[356089338,1741893049243,-849.997995,0.00014,2]
[356089339,1741893049253,-166.202127,0.00014,2]
[356089340,1741893049262,-896374.27724868,0.00014,2]
[356089341,1741893049736,-49546.78612406,0.00014,2]
[356089342,1741893051330,-500.0,0.00013698,2]
[356089343,1741893051340,-500.0,0.00013698,2]
[356089344,1741893051350,-500.0,0.00013698,2]
[356089345,1741893051360,-4488.95,0.00013698,2]
[356089346,1741893051370,-500.0,0.00013698,2]
[356089347,1741893051380,-2434.1,0.00013698,2]
[356089348,1741893051389,-500.0,0.00013698,2]
[356089349,1741893051399,-500.0,0.00013698,2]
[356089350,1741893051408,-500.0,0.00013698,2]
[356089351,1741893051418,-151.0,0.00013698,2]
[356089352,1741893051428,-661.19,0.00013698,2]
[356089353,1741893051437,-500.0,0.00013698,2]
[356089354,1741893051446,-500.0,0.00013698,2]
[356089355,1741893051456,-803.79,0.00013698,2]
[356089356,1741893051468,-500.0,0.00013698,2]
[356089357,1741893051477,-500.0,0.00013698,2]
[356089358,1741893051487,-500.0,0.00013698,2]
[356089359,1741893051496,-500.0,0.00013698,2]
[356089360,1741893051506,-500.0,0.00013698,2]
[356089361,1741893051515,-500.0,0.00013698,2]
[356089362,1741893051525,-179.00984,0.00013699,2]
[356089363,1741893051534,-500.0,0.00013972,2]
[356089364,1741893051544,-500.0,0.00013972,2]
[356089365,1741893051554,-563.83469358,0.00013972,2]
[356089366,1741893051563,-4488.95,0.00013972,2]
[356089367,1741893051572,-500.0,0.00013972,2]
[356089368,1741893051582,-2434.1,0.00013972,2]
[356089369,1741893051594,-500.0,0.00013972,2]
[356089370,1741893051603,-500.0,0.00013972,2]
[356089371,1741893051612,-661.19,0.00013972,2]
[356089372,1741893051622,-500.0,0.00013972,2]
[356089373,1741893051632,-500.0,0.00013972,2]
[356089374,1741893051641,-803.79,0.00013972,2]
[356089375,1741893051650,-500.0,0.00013972,2]
[356089376,1741893051660,-528.02,0.00013972,2]
[356089377,1741893051669,-500.0,0.00013972,2]
[356089378,1741893051679,-500.0,0.00013972,2]
[356089379,1741893051688,-700846.31893193,0.00014,2]
[356089380,1741893051709,-4349.9999995,0.00014,2]
[356089381,1741893052212,-500.0,0.00013698,2]
[356089382,1741893052222,-500.0,0.00013698,2]
[356089383,1741893052231,-521.15682889,0.00013698,2]
[356089384,1741893052240,-500.0,0.00013698,2]
[356089385,1741893052250,-500.0,0.00013698,2]
[356089386,1741893052259,-2200.0,0.00013972,2]
[356089387,1741893052268,-500.0,0.00013972,2]
[356089388,1741893052278,-500.0,0.00013972,2]
[356089389,1741893052287,-500.0,0.00013972,2]
[356089390,1741893052297,-213229.61052206,0.00014,2]
[356089395,1741893990102,-230.12223728,0.00012496,2]
[356089426,1741894232060,-1108.40080481,0.00012371,2]
[356089428,1741894232071,-8769.3315129,0.00012573,2]
[356089430,1741894232080,-300.0,0.00013166,2]
[356089432,1741894232090,-540.0,0.0001317,2]
[356089434,1741894232100,-1914.0,0.0001317,2]
[356089436,1741894232110,-399.0,0.0001317,2]
[356089438,1741894232120,-181.49726223,0.0001334,2]
[356089440,1741894232130,-500.0,0.00013394,2]
[356089442,1741894232140,-500.0,0.00013394,2]
[356089444,1741894232149,-339.66811785,0.00013394,2]
[356089446,1741894232159,-434.74552398,0.00013394,2]
[356089448,1741894232168,-200444.16337447,0.00013395,2]
[356089450,1741894232179,-181.49726221,0.00013426,2]
[356089452,1741894232189,-600.0,0.0001344,2]
[356089454,1741894232199,-3222.62102829,0.00013498,2]
[356089456,1741894232208,-18425.99427612,0.00013499,2]
[356089458,1741894232217,-181.49726221,0.00013512,2]
[356089460,1741894232227,-153.951,0.00013598,2]
[356089462,1741894232236,-181.49726221,0.00013598,2]
[356089464,1741894232246,-152.0,0.00013619,2]
[356089466,1741894232256,-2905.304,0.00013637,2]
[356089468,1741894232265,-615.33537474,0.00013673,2]
[356089470,1741894232275,-500.0,0.00013673,2]
[356089472,1741894232285,-418.05504121,0.00013673,2]
[356089474,1741894232296,-500.0,0.00013673,2]
[356089476,1741894232305,-500.0,0.00013673,2]
[356089478,1741894232315,-500.0,0.00013673,2]
[356089480,1741894232324,-500.0,0.00013673,2]
[356089482,1741894232335,-500.0,0.00013673,2]
[356089484,1741894232344,-500.0,0.00013673,2]
[356089486,1741894232354,-270.62020391,0.00013673,2]
[356089488,1741894232363,-500.0,0.00013673,2]
[356089490,1741894232373,-500.0,0.00013673,2]
[356089492,1741894232383,-500.0,0.00013673,2]
[356089494,1741894232392,-500.0,0.00013673,2]
[356089496,1741894232401,-500.0,0.00013673,2]
[356089498,1741894232411,-500.0,0.00013673,2]
[356089500,1741894232420,-500.0,0.00013673,2]
[356089502,1741894232430,-500.0,0.00013673,2]
[356089504,1741894232439,-500.0,0.00013673,2]
[356089506,1741894232448,-500.0,0.00013673,2]
[356089508,1741894232457,-501.15065365,0.00013673,2]
[356089510,1741894232467,-500.0,0.00013673,2]
[356089512,1741894232476,-500.0,0.00013673,2]
[356089514,1741894232485,-500.0,0.00013673,2]
[356089516,1741894232494,-500.0,0.00013673,2]
[356089518,1741894232504,-500.0,0.00013673,2]
[356089520,1741894232513,-552.75485391,0.00013673,2]
[356089522,1741894232522,-500.0,0.00013673,2]
[356089524,1741894232532,-500.0,0.00013673,2]
[356089526,1741894232541,-500.0,0.00013673,2]
[356089528,1741894232551,-500.0,0.00013673,2]
[356089530,1741894232560,-500.0,0.00013673,2]
[356089532,1741894232569,-500.0,0.00013673,2]
[356089534,1741894232579,-151.0,0.0001369,2]
[356089536,1741894232588,-500.0,0.00013698,2]
[356089538,1741894232597,-368.989232,0.00013698,2]
[356089540,1741894232606,-368.989232,0.00013698,2]
[356089542,1741894232616,-500.0,0.00013698,2]
[356089543,1741894232625,-500.0,0.00013698,2]
[356089544,1741894232635,-500.0,0.00013698,2]
[356089546,1741894232644,-500.0,0.00013698,2]
[356089547,1741894232653,-500.0,0.00013698,2]
[356089548,1741894232663,-500.0,0.00013698,2]
[356089549,1741894232672,-522.40979407,0.00013698,2]
[356089550,1741894232681,-954.95,0.00013698,2]
[356089551,1741894232690,-500.0,0.00013698,2]
[356089552,1741894232701,-232.89665508,0.00013698,2]
[356089553,1741894232711,-518.46208223,0.00013698,2]
[356089554,1741894232720,-500.0,0.00013698,2]
[356089555,1741894232729,-621.15086698,0.00013698,2]
[356089556,1741894232739,-500.0,0.00013698,2]
[356089557,1741894232748,-500.0,0.00013698,2]
[356089558,1741894232757,-500.0,0.00013698,2]
[356089559,1741894232766,-500.0,0.00013698,2]
[356089560,1741894232776,-500.0,0.00013698,2]
[356089561,1741894232785,-500.0,0.00013698,2]
[356089562,1741894232795,-500.0,0.00013698,2]
[356089563,1741894232804,-500.0,0.00013698,2]
[356089564,1741894232813,-500.0,0.00013698,2]
[356089565,1741894232823,-500.0,0.00013698,2]
[356089566,1741894232832,-500.0,0.00013698,2]
[356089567,1741894232842,-500.0,0.00013698,2]
[356089568,1741894232851,-500.0,0.00013698,2]
[356089569,1741894232861,-500.0,0.00013698,2]
[356089570,1741894232871,-587.19,0.00013698,2]
[356089571,1741894232880,-500.0,0.00013698,2]
[356089572,1741894232890,-544.0906514,0.00013698,2]
[356089573,1741894232899,-500.0,0.00013698,2]
[356089574,1741894232909,-500.0,0.00013698,2]
[356089575,1741894232918,-500.0,0.00013698,2]
[356089576,1741894232927,-500.0,0.00013698,2]
[356089577,1741894232936,-500.0,0.00013698,2]
[356089578,1741894232946,-500.0,0.00013698,2]
[356089579,1741894232956,-500.0,0.00013698,2]
[356089580,1741894232965,-500.0,0.00013698,2]
[356089581,1741894232975,-500.0,0.00013698,2]
[356089582,1741894232986,-241.48519248,0.00013698,2]
[356089583,1741894232996,-500.0,0.00013698,2]
[356089584,1741894233006,-500.0,0.00013698,2]
[356089585,1741894233016,-500.0,0.00013698,2]
[356089586,1741894233027,-500.0,0.00013698,2]
[356089587,1741894233037,-500.0,0.00013698,2]
[356089588,1741894233048,-500.0,0.00013698,2]
[356089589,1741894233059,-500.0,0.00013698,2]
[356089590,1741894233069,-500.0,0.00013698,2]
[356089591,1741894233079,-500.0,0.00013698,2]
[356089592,1741894233090,-523.4386883,0.00013698,2]
[356089593,1741894233100,-500.0,0.00013698,2]
[356089594,1741894233111,-500.0,0.00013698,2]
[356089595,1741894233121,-500.0,0.00013698,2]
[356089596,1741894233131,-500.0,0.00013698,2]
[356089597,1741894233141,-500.0,0.00013698,2]
[356089598,1741894233151,-539.43840697,0.00013698,2]
[356089599,1741894233161,-500.0,0.00013698,2]
[356089600,1741894233171,-500.0,0.00013698,2]
[356089601,1741894233181,-500.0,0.00013698,2]
[356089602,1741894233191,-500.0,0.00013698,2]
[356089603,1741894233202,-500.0,0.00013698,2]
[356089604,1741894233212,-500.0,0.00013698,2]
[356089605,1741894233223,-500.0,0.00013698,2]
[356089606,1741894233234,-500.0,0.00013698,2]
[356089607,1741894233244,-500.0,0.00013698,2]
[356089608,1741894233254,-500.0,0.00013698,2]